fUST/lending_fUST_20240126
["ID","MTS","AMOUNT","RATE_DAILY","PERIOD"]
[312793275,1706238640752,-500.0,0.00037809,15]
[312793276,1706238640761,-1018.21,0.00037809,2]
[312793277,1706238640772,-1018.21,0.00037809,2]
[312793279,1706238640781,-1018.21,0.00037809,2]
[312793281,1706238640790,-1018.21,0.00037809,2]
[312793283,1706238640799,-1018.21,0.00037809,2]
[312793285,1706238640808,-1018.21,0.00037809,2]
[312793286,1706238640817,-1018.21,0.00037809,2]
[312793287,1706238640826,-1018.21,0.00037809,2]
[312793288,1706238640836,-1018.21,0.00037809,2]
[312793289,1706238640846,-1018.21,0.00037809,2]
[312793290,1706238640856,-263906.60099,0.0003781,4]
[312793291,1706238640869,-155.56950205,0.00037811,4]
[312793292,1706238640879,-170.02957671,0.00037811,4]
[312793293,1706238640888,-2048.36923408,0.00037811,4]
[312793294,1706238640898,-155.83901591,0.00037811,4]
[312793295,1706238640907,-155.46266596,0.00037811,4]
[312793296,1706238640917,-167.89545146,0.00037811,4]
[312793297,1706238640926,-793.25533287,0.00037812,23]
[312793298,1706238640935,-155.58358606,0.00037812,4]
[312793299,1706238640946,-1614.18472279,0.00037812,4]
[312793300,1706238640955,-151.0,0.00037893,2]
[312793301,1706238640965,-1131.148084,0.00037893,2]
[312793302,1706238640974,-1131.148084,0.00037893,2]
[312793303,1706238640983,-151.0,0.00037893,2]
[312793304,1706238640992,-10000.0,0.00037893,2]
[312793305,1706238641001,-10000.0,0.00037893,2]
[312793306,1706238641011,-229.533175,0.00037893,2]
[312793307,1706238641020,-229.533175,0.00037893,2]
[312793308,1706238641030,-441.512243,0.00037894,2]
[312793309,1706238641040,-441.512243,0.00037894,2]
[312793310,1706238641048,-152.917478,0.00037914,2]
[312793311,1706238641057,-441.512243,0.00037914,2]
[312793312,1706238641066,-441.512243,0.00037914,2]
[312793313,1706238641075,-151.0,0.00037914,2]
[312793314,1706238641085,-1131.148084,0.00037914,2]
[312793315,1706238641094,-1131.148084,0.00037914,2]
[312793316,1706238641172,-151.0,0.00037914,2]
[312793317,1706238641181,-13035.14000516,0.00037956,2]
[312793318,1706238641191,-4689.35436121,0.00037956,2]
[312793319,1706238641200,-5000.0,0.00037956,7]
[312793320,1706238641210,-441.512243,0.00037956,2]
[312793321,1706238641219,-441.512243,0.00037956,2]
[312793322,1706238641228,-5000.0,0.00037956,7]
[312793323,1706238641237,-151.0,0.00037956,2]
[312793324,1706238641247,-1131.148084,0.00037956,2]
[312793325,1706238641256,-1131.148084,0.00037956,2]
[312793326,1706238641265,-151.0,0.00037956,2]
[312793327,1706238641274,-10000.0,0.00037956,2]
[312793328,1706238641283,-10000.0,0.00037956,2]
[312793329,1706238641291,-7682.02433565,0.00037956,2]
[312793370,1706238642870,157.06074966,0.00019699,2]
[312793394,1706238645940,-252.26028481,0.00029178,2]
[312793395,1706238657974,207.08234199,0.0002,2]
[312793396,1706238662859,154.97188045,0.00019699,2]
[312793397,1706238664435,1122.9987701,0.00019699,2]
[312793398,1706238668314,155.13568077,0.00019699,2]
[312793399,1706238669896,513.09795641,0.00019699,2]
[312793401,1706238819963,300.0,0.0002,2]
[312793402,1706238827943,216336.34440315,0.00019699,2]
[312793482,1706239837915,-154.9690062,0.00026837,4]
[312793483,1706239837925,-166.666666,0.00026838,2]
[312793484,1706239837934,-890.1973123,0.00026989,2]
[312793485,1706239837943,-181.709859,0.0002723,2]
[312793486,1706239837952,-263.12024719,0.000274,2]
[312793487,1706239837963,-293.9255039,0.00027428,2]
[312793488,1706239837973,-250.0,0.00027434,2]
[312793489,1706239837983,-1567.2786229,0.00027465,2]
[312793490,1706239837994,-173.317516,0.00027575,2]
[312793491,1706239838003,-24900.0,0.00027599,2]
[312793492,1706239838015,-192.3198301,0.00028493,2]
[312793493,1706239838025,-153.0,0.00028493,2]
[312793494,1706239838034,-153.0,0.00028493,2]
[312793495,1706239838043,-155.0,0.00029,2]
[312793496,1706239838053,-248.0,0.00029078,2]
[312793497,1706239838062,-170.41849621,0.00029178,2]
[312793498,1706239838071,-343.09681091,0.00029178,2]
[312793500,1706239838080,-430.73710201,0.00029178,2]
[312793501,1706239838089,-1113.55242253,0.00029178,2]
[312793502,1706239838098,-3226.55720631,0.00029178,2]
[312793503,1706239838107,-548.10984714,0.00029178,2]
[312793504,1706239838117,-764.62995522,0.00029178,2]
[312793505,1706239838127,-620.6669279,0.00029178,2]
[312793506,1706239838137,-1827.38712364,0.00029178,2]
[312793507,1706239838147,-3193.90222825,0.00029178,2]
[312793508,1706239838157,-363.5551619,0.00029178,2]
[312793509,1706239838167,-199.397808,0.00029315,2]
[312793510,1706239838176,-199.397808,0.00029315,2]
[312793511,1706239838186,-199.397808,0.00029315,2]
[312793512,1706239838195,-199.397808,0.00029315,2]
[312793513,1706239838205,-153.0,0.00029315,2]
[312793514,1706239838214,-153.0,0.00029315,2]
[312793515,1706239838224,-153.0,0.00029315,2]
[312793516,1706239838233,-199.397808,0.00029315,2]
[312793517,1706239838243,-153.0,0.00029315,2]
[312793518,1706239838253,-153.0,0.00029315,2]
[312793519,1706239838262,-176.8196987,0.00029315,2]
[312793520,1706239838271,-153.0,0.00029315,2]
[312793521,1706239838281,-153.0,0.00029315,2]
[312793522,1706239838291,-153.0,0.00029315,2]
[312793523,1706239838301,-199.397808,0.00029315,2]
[312793524,1706239838310,-153.0,0.00029315,2]
[312793525,1706239838318,-153.0,0.00029315,2]
[312793526,1706239838327,-153.0,0.00029315,2]
[312793527,1706239838337,-153.0,0.00029315,2]
[312793528,1706239838346,-153.0,0.00029315,2]
[312793529,1706239838356,-199.397808,0.00029315,2]
[312793530,1706239838365,-153.0,0.00029315,2]
[312793531,1706239838374,-153.0,0.00029315,2]
[312793532,1706239838384,-620.00079431,0.0002937,2]
[312793533,1706239838393,-153.0,0.00029589,2]
[312793534,1706239838402,-153.0,0.00029589,2]
[312793535,1706239838411,-153.0,0.00029589,2]
[312793536,1706239838419,-1590.0158995,0.00029989,2]
[312793537,1706239838429,-11069.22,0.0002999,3]
[312793538,1706239838437,-1497.0200028,0.00029998,2]
[312793539,1706239838446,-155.57662758,0.00029998,2]
[312793540,1706239838455,-154.86062544,0.0003,2]
[312793541,1706239838466,-195.54104758,0.0003,2]
[312793542,1706239838475,-139304.51624747,0.0003,4]
[312793543,1706239838483,-688.95190791,0.0003,4]
[312793544,1706239838492,-2373.20128333,0.0003,2]
[312793545,1706239838501,-154.86062544,0.0003,4]
[312793546,1706239838510,-244.39344907,0.0003,4]
[312793547,1706239838519,-154.86062544,0.0003,4]
[312793548,1706239838528,-152.0,0.0003,2]
[312793549,1706239838538,-199.397808,0.00030137,2]
[312793550,1706239838547,-199.397808,0.00030137,2]
[312793551,1706239838556,-199.397808,0.00030137,2]
[312793552,1706239838565,-153.0,0.00030137,2]
[312793553,1706239838575,-153.0,0.00030137,2]
[312793554,1706239838585,-199.397808,0.00030137,2]
[312793555,1706239838594,-153.0,0.00030137,2]
[312793556,1706239838603,-153.0,0.00030137,2]
[312793557,1706239838613,-199.397808,0.00030137,2]
[312793558,1706239838623,-153.0,0.00030137,2]
[312793559,1706239838632,-153.0,0.00030137,2]
[312793560,1706239838641,-199.397808,0.00030137,2]
[312793561,1706239838650,-199.397808,0.00030137,2]
[312793562,1706239838660,-199.397808,0.00030137,2]
[312793563,1706239838671,-199.397808,0.00030137,2]
[312793564,1706239838680,-199.397808,0.00030137,2]
[312793565,1706239838690,-199.397808,0.00030137,2]
[312793566,1706239838699,-199.397808,0.00030137,2]
[312793567,1706239838709,-199.397808,0.00030137,2]
[312793568,1706239838718,-199.397808,0.00030137,2]
[312793569,1706239838728,-199.397808,0.00030137,2]
[312793570,1706239838738,-199.397808,0.00030137,2]
[312793571,1706239838749,-199.397808,0.00030137,2]
[312793572,1706239838758,-153.0,0.00030137,2]
[312793573,1706239838768,-153.0,0.00030137,2]
[312793574,1706239838778,-153.0,0.00030137,2]
[312793575,1706239838788,-392.8518118,0.00030137,2]
[312793576,1706239838797,-153.0,0.00030137,2]
[312793577,1706239838807,-153.0,0.00030137,2]
[312793578,1706239838817,-153.0,0.00030137,2]
[312793579,1706239838827,-153.0,0.00030137,2]
[312793580,1706239838838,-153.0,0.00030137,2]
[312793581,1706239838847,-153.0,0.00030137,2]
[312793582,1706239838856,-153.0,0.00030137,2]
[312793583,1706239838867,-153.0,0.00030137,2]
[312793584,1706239838877,-153.0,0.00030137,2]
[312793585,1706239838886,-153.0,0.00030137,2]
[312793586,1706239838896,-153.0,0.00030137,2]
[312793587,1706239838995,-153.0,0.00030137,2]
[312793588,1706239839006,-153.0,0.00030137,2]
[312793589,1706239839015,-153.0,0.00030137,2]
[312793590,1706239839025,-153.0,0.00030137,2]
[312793591,1706239839034,-153.0,0.00030137,2]
[312793592,1706239839043,-153.0,0.00030137,2]
[312793593,1706239839053,-153.0,0.00030137,2]
[312793594,1706239839063,-153.0,0.00030137,2]
[312793595,1706239839073,-153.0,0.00030137,2]
[312793596,1706239839082,-153.0,0.00030137,2]
[312793597,1706239839093,-214.43628,0.00030137,2]
[312793598,1706239839103,-153.0,0.00030137,2]
[312793599,1706239839112,-153.0,0.00030137,2]
[312793600,1706239839121,-153.0,0.00030137,2]
[312793601,1706239839131,-153.0,0.00030137,2]
[312793602,1706239839141,-153.0,0.00030137,2]
[312793603,1706239839150,-153.0,0.00030137,2]
[312793604,1706239839159,-153.0,0.00030137,2]
[312793605,1706239839169,-153.0,0.00030137,2]
[312793606,1706239839179,-153.0,0.00030137,2]
[312793607,1706239839191,-170.3168459,0.00030137,2]
[312793608,1706239839200,-166.275123,0.00030137,2]
[312793609,1706239839212,-158.249048,0.00030137,2]
[312793610,1706239839222,-166.666666,0.00030496,2]
[312793611,1706239839233,-248.0,0.0003058,2]
[312793612,1706239839242,-620.00003972,0.00030838,2]
[312793613,1706239839251,-454.77590654,0.00031,4]
[312793614,1706239839263,-199.397808,0.00031556,2]
[312793615,1706239839274,-166.275123,0.00031659,2]
[312793616,1706239839284,-158.249048,0.00031703,2]
[312793617,1706239839296,-154.86062544,0.00032,4]
[312793618,1706239839306,-248.0,0.00032083,2]
[312793619,1706239839315,-1821.86366752,0.00032458,2]
[312793620,1706239839325,-29820.0886424,0.00032877,2]
[312793621,1706239839334,-155.17044746,0.00033,4]
[312793622,1706239839344,-22952.05569164,0.00033,2]
[312793623,1706239839354,-170.0,0.00033,2]
[312793624,1706239839363,-166.275123,0.00033181,2]
[312793625,1706239839373,-158.249048,0.00033268,2]
[312793626,1706239839382,-248.0,0.00033585,2]
[312793627,1706239839392,-50000.0,0.00033768,7]
[312793628,1706239839402,-200.50766248,0.00034442,2]
[312793629,1706239839411,-215.31694034,0.00034473,2]
[312793630,1706239839420,-377.24352894,0.00034473,2]
[312793631,1706239839430,-1189.08739788,0.00034482,2]
[312793632,1706239839439,-166.275123,0.00034703,2]
[312793633,1706239839449,-158.249048,0.00034834,2]
[312793634,1706239839458,-592.53064848,0.00035,2]
[312793635,1706239839468,-248.0,0.00035088,2]
[312793636,1706239839477,-166.275123,0.00036225,2]
[312793637,1706239839487,-158.249048,0.00036399,2]
[312793638,1706239839497,-248.0,0.0003659,2]
[312793639,1706239839508,-166.275123,0.00037747,2]
[312793640,1706239839517,-150.0,0.000379,2]
[312793641,1706239839527,-158.249048,0.00037965,2]
[312793642,1706239839536,-3220.87730288,0.00037977,2]
[312793643,1706239839545,-248.0,0.00038093,2]
[312793644,1706239839554,-576.0,0.000381,2]
[312793645,1706239839564,-4064.40252202,0.00038106,2]
[312793646,1706239839574,-5000.0,0.00038106,7]
[312793647,1706239839585,-1348.18937884,0.00038106,2]
[312793648,1706239839595,-165.0,0.00038257,2]
[312793649,1706239839606,-203.36,0.00038257,2]
[312793650,1706239839615,-155.19730661,0.00038596,4]
[312793651,1706239839625,-184.32273148,0.00038596,4]
[312793652,1706239839635,-1286.66460469,0.00038597,4]
[312793653,1706239839645,-56190.59890475,0.00038598,2]
[312793928,1706239846118,300.0,0.0002,2]
[312794148,1706239850594,2085.83244318,0.0002,2]
[312794149,1706239851051,199.6200372,0.00019699,2]
[312794150,1706239862974,157.30096098,0.00019699,2]
[312794151,1706239866070,407.93473902,0.000197,2]
[312794152,1706239866584,724.26834837,0.0002,2]
[312794153,1706239868893,413.818715,0.00019699,2]
[312794154,1706239870095,300.0,0.0002,2]
[312794155,1706239878171,342.99448004,0.00019699,2]
[312794156,1706239891961,656.69718788,0.00019699,2]
[312794157,1706239893243,315.97898519,0.00019699,2]
[312794158,1706239897054,3218.21657637,0.00019699,2]
[312794163,1706240324562,154.95351395,0.00020999,4]
[312794164,1706240377747,-1827.38712364,0.00021,2]
[312794165,1706240638605,154.9690062,0.00020998,4]
[312794170,1706240957128,154.9690062,0.00020898,4]
[312794199,1706241032103,-155.67745124,0.00020899,2]
[312794200,1706241032113,-1583.42568059,0.00020998,2]
[312794201,1706241032122,-4514.63373253,0.00020999,2]
[312794202,1706241032131,-1827.38712364,0.00021,2]
[312794203,1706241032141,-166.666666,0.00023725,2]
[312794204,1706241032149,-176.740816,0.00024319,2]
[312794205,1706241032159,-166.666666,0.00024372,2]
[312794206,1706241032167,-426.28921801,0.00024999,2]
[312794207,1706241032177,-764.62995522,0.00025,2]
[312794208,1706241032186,-1705.2424204,0.00025,2]
[312794209,1706241032274,-5682.57191932,0.00025,2]
[312794210,1706241032283,-166.666666,0.00025019,2]
[312794211,1706241032293,-166.666666,0.00025666,2]
[312794212,1706241032302,-566.4277077,0.00025829,2]
[312794213,1706241032310,-250.0,0.00026085,2]
[312794214,1706241032319,-152.82367298,0.00026307,3]
[312794215,1706241032329,-223.2,0.00026307,2]
[312794216,1706241032338,-166.666666,0.00026313,2]
[312794217,1706241032347,-1657.99652016,0.00026375,2]
[312794226,1706241038214,-23242.00347984,0.00026375,2]
[312794227,1706241038224,-200.0,0.00026407,2]
[312794228,1706241038233,-166.666666,0.00026959,2]
[312794229,1706241038243,-154.9690062,0.00026998,4]
[312794230,1706241038252,-351.67065141,0.000274,2]
[312794231,1706241038262,-200.0,0.00027499,15]
[312794232,1706241038271,-3193.90222825,0.000275,2]
[312794234,1706241038281,-279.88516594,0.00028,2]
[312794235,1706241038290,-223.2,0.00028006,2]
[312794236,1706241038299,-153.0,0.00028493,2]
[312794237,1706241038308,-153.0,0.00028493,2]
[312794238,1706241038318,-199.397808,0.00028493,2]
[312794239,1706241038327,-172.207807,0.0002887,2]
[312794240,1706241038337,-153.0,0.00029041,2]
[312794241,1706241038346,-1932.98612217,0.00029369,2]
[312794242,1706241038355,-620.00318542,0.0002937,2]
[312794243,1706241038364,-223.2,0.00029705,2]
[312794244,1706241038373,-173.49863707,0.000299,2]
[312794245,1706241038382,-15893.1,0.0002997,3]
[312794246,1706241038391,-20237.22,0.0002999,3]
[312794247,1706241038400,-180.03392829,0.00029998,2]
[312794248,1706241038409,-2208.37155571,0.00029998,2]
[312794249,1706241038419,-155.57662758,0.00029998,2]
[312794250,1706241038428,-155.77178732,0.00029998,2]
[312794251,1706241038437,-1422.50597517,0.00029999,2]
[312794252,1706241038446,-308.55029061,0.0003,4]
[312794253,1706241038456,-155.19545592,0.0003,7]
[312794254,1706241038465,-689.98114696,0.0003,4]
[312794255,1706241038474,-154.9690062,0.0003,2]
[312794256,1706241038483,-688.95190791,0.0003,4]
[312794257,1706241038493,-36544.86679916,0.0003,4]
[312794300,1706241041313,-11837.9522,0.0003,4]
[312794389,1706241043297,-1414.51660857,0.0003,4]
[312794392,1706241043308,-390.92951651,0.0003,4]
[312794531,1706241046278,-764.62995522,0.00025,2]
[312794532,1706241046288,-20053.19023168,0.0003,4]
[312794533,1706241046336,-2710.19289054,0.0003,4]
[312794534,1706241046347,-5088.96179803,0.0003,4]
[312794673,1706242238470,-154.9690062,0.000261,4]
[312794674,1706242238480,-173.317516,0.00026101,2]
[312794675,1706242238489,-166.666666,0.00027683,2]
[312794676,1706242238498,-176.740816,0.00028252,2]
[312794677,1706242238507,-7387.81433972,0.00028323,2]
[312794678,1706242238517,-15070.0424687,0.00028324,2]
[312794679,1706242238527,-164.3825408,0.000284,2]
[312794680,1706242238536,-153.0,0.00029178,2]
[312794681,1706242238546,-306.0,0.00029178,2]
[312794682,1706242238555,-153.0,0.00029178,2]
[312794683,1706242238564,-199.397808,0.00029178,2]
[312794684,1706242238573,-199.397808,0.00029315,2]
[312794685,1706242238583,-153.0,0.00029315,2]
[312794686,1706242238591,-153.0,0.00029315,2]
[312794687,1706242238601,-153.0,0.00029315,2]
[312794688,1706242238610,-153.0,0.00029315,2]
[312794689,1706242238619,-153.0,0.00029315,2]
[312794690,1706242238628,-153.0,0.00029315,2]
[312794691,1706242238637,-153.0,0.00029315,2]
[312794692,1706242238646,-153.0,0.00029315,2]
[312794693,1706242238655,-306.0,0.00029378,2]
[312794694,1706242238664,-153.0,0.00029378,2]
[312794695,1706242238673,-398.795616,0.00029378,2]
[312794696,1706242238682,-153.0,0.00029378,2]
[312794697,1706242238692,-153.0,0.00029378,2]
[312794698,1706242238701,-166.666666,0.0002957,2]
[312794699,1706242238710,-153.0,0.00029652,2]
[312794700,1706242238719,-156.24,0.0002989,2]
[312794701,1706242238730,-153.0,0.000299,2]
[312794702,1706242238740,-153.0,0.000299,2]
[312794703,1706242238749,-199.397808,0.000299,2]
[312794704,1706242238758,-199.397808,0.000299,2]
[312794705,1706242238767,-153.0,0.000299,2]
[312794706,1706242238777,-153.0,0.000299,2]
[312794707,1706242238786,-193.4540038,0.000299,2]
[312794708,1706242238795,-199.397808,0.000299,2]
[312794709,1706242238804,-214.43628,0.000299,2]
[312794710,1706242238814,-199.397808,0.000299,2]
[312794711,1706242238823,-153.0,0.000299,2]
[312794712,1706242238832,-199.397808,0.000299,2]
[312794713,1706242238842,-173.49863706,0.000299,2]
[312794714,1706242238851,-2212.66808644,0.0002999,3]
[312794869,1706243432497,-154.9690062,0.00026373,4]
[312794871,1706243432507,-212.61862495,0.00026374,2]
[312794874,1706243432519,-4999.21117306,0.00026374,2]
[312794876,1706243432529,-8116.9870888,0.00026375,2]
[312794980,1706243438593,-2418.66496132,0.00026375,2]
[312794982,1706243438605,-2204.50374427,0.00026375,2]
[312794984,1706243438616,-380.60569823,0.00026375,2]
[312795073,1706243441790,-1286.33407508,0.00026375,2]
[312795075,1706243441800,-154.9690062,0.00026375,2]
[312795077,1706243441809,-166.666666,0.00027774,2]
[312795079,1706243441818,-199.3903337,0.00028138,2]
[312795081,1706243441827,-269.755107,0.00028271,2]
[312795083,1706243441836,-290.32272867,0.00028498,2]
[312795084,1706243441845,-166.666666,0.00028531,2]
[312795086,1706243441854,-172.207807,0.00028584,2]
[312795088,1706243441863,-199.397808,0.000289,2]
[312795090,1706243441871,-153.0,0.00029178,2]
[312795092,1706243441880,-153.0,0.00029178,2]
[312795094,1706243441889,-153.0,0.00029178,2]
[312795095,1706243441899,-199.397808,0.00029178,2]
[312795096,1706243441907,-199.397808,0.00029178,2]
[312795097,1706243441916,-153.0,0.00029178,2]
[312795098,1706243441926,-153.0,0.00029178,2]
[312795099,1706243441935,-323.3168459,0.00029178,2]
[312795100,1706243441944,-199.397808,0.00029178,2]
[312795101,1706243441953,-153.0,0.00029178,2]
[312795102,1706243441962,-153.0,0.00029178,2]
[312795103,1706243441972,-199.397808,0.00029178,2]
[312795104,1706243441981,-306.0,0.00029178,2]
[312795105,1706243441990,-199.397808,0.00029178,2]
[312795106,1706243441999,-199.397808,0.00029178,2]
[312795107,1706243442009,-153.0,0.00029178,2]
[312795108,1706243442018,-153.0,0.00029178,2]
[312795109,1706243442029,-153.0,0.00029178,2]
[312795110,1706243442038,-199.397808,0.00029178,2]
[312795111,1706243442048,-199.397808,0.00029178,2]
[312795112,1706243442057,-153.0,0.00029178,2]
[312795113,1706243442066,-166.666666,0.00029288,2]
[312795114,1706243442075,-620.00015927,0.00029296,2]
[312795115,1706243442085,-154.59848144,0.00029542,2]
[312795116,1706243442094,-153.0,0.000297,2]
[312795117,1706243442103,-153.0,0.000297,2]
[312795118,1706243442112,-306.22441317,0.00029988,2]
[312795119,1706243442122,-953.44739287,0.00029988,2]
[312795120,1706243442131,-4583.8893913,0.0002999,3]
[312795231,1706243446779,-199.397808,0.00029178,2]
[312795232,1706243446788,-7470.22311019,0.0002999,3]
[312795306,1706244632689,-5563.39338965,0.00025567,2]
[312795310,1706244632715,-847.7236007,0.00025567,2]
[312795312,1706244632724,-718.57756652,0.00025568,2]
[312795500,1706244641863,-500.0,0.00025567,2]
[312795501,1706244641874,-3599.12390088,0.00025568,2]
[312795502,1706244641888,-1902.4185194,0.00025568,2]
[312795503,1706244641901,-13492.01661396,0.00025568,2]
[312795504,1706244641911,-274.57299727,0.00025569,2]
[312795516,1706244643769,-4937.25680074,0.00025569,2]
[312795517,1706244643779,-5000.0,0.00025575,4]
[312795519,1706244643792,-156.73257471,0.00026375,2]
[312795520,1706244643802,-169.26003,0.00026528,2]
[312795521,1706244643811,-154.9690062,0.00026998,4]
[312795522,1706244643820,-269.755107,0.00027117,2]
[312795523,1706244643830,-96.30150453,0.00027734,2]
[312795656,1706245837931,-315.66858311,0.00025724,2]
[312795706,1706245841047,-184.33141689,0.00025724,2]
[312795707,1706245841057,-196.172903,0.00025725,2]
[312795708,1706245841066,-4274.07799357,0.00025844,2]
[312795709,1706245841075,-5211.82979801,0.00025845,2]
[312795710,1706245841085,-172.990764,0.00025849,2]
[312795711,1706245841094,-173.317516,0.00025896,2]
[312795712,1706245841103,-685.6096693,0.0002698,2]
[312795713,1706245841112,-154.95351395,0.0002698,4]
[312795714,1706245841121,-196.172903,0.00027478,2]
[312795715,1706245841131,-621.08630561,0.00027734,2]
[312795716,1706245841140,-3220.16160157,0.00027734,2]
[312795717,1706245841150,-1572.72587289,0.00027734,2]
[312795718,1706245841159,-764.62995522,0.00027734,2]
[312795719,1706245841169,-1110.30133816,0.00027734,2]
[312795720,1706245841181,-154.95351395,0.00027734,2]
[312795721,1706245841190,-155.80293257,0.00027734,2]
[312795722,1706245841199,-155.96848938,0.00027734,2]
[312795723,1706245841209,-155.64846948,0.00027734,2]
[312795724,1706245841219,-154.95351395,0.00027734,2]
[312795725,1706245841228,-1115.24823197,0.00027734,2]
[312795726,1706245841238,-154.95351395,0.00027734,2]
[312795727,1706245841247,-3193.90222825,0.00027734,2]
[312795728,1706245841259,-535.52033051,0.00027734,2]
[312795729,1706245841269,-154.95351395,0.00027734,2]
[312795730,1706245841279,-154.95351395,0.00027734,2]
[312795731,1706245841289,-154.95351395,0.00027734,2]
[312795732,1706245841299,-343.32585956,0.00027734,2]
[312795733,1706245841309,-548.30356127,0.00027734,2]
[312795734,1706245841319,-233.5305887,0.00027734,2]
[312795735,1706245841329,-10218.21241305,0.00027734,2]
[312795736,1706245841339,-1827.38712364,0.00027734,2]
[312795737,1706245841348,-154.95351395,0.00027734,2]
[312795738,1706245841357,-7139.615994,0.00027734,2]
[312795739,1706245841366,-7139.615994,0.00027734,2]
[312795740,1706245841375,-151.0,0.00027734,2]
[312795741,1706245841384,-175.773222,0.00027734,2]
[312795742,1706245841393,-175.773222,0.00027734,2]
[312795743,1706245841403,-175.773222,0.00027734,2]
[312795744,1706245841412,-175.773222,0.00027734,2]
[312795745,1706245841422,-175.773222,0.00027734,2]
[312795746,1706245841432,-175.773222,0.00027734,2]
[312795747,1706245841441,-151.0,0.00027734,2]
[312795748,1706245841450,-151.0,0.00027734,2]
[312795749,1706245841459,-151.0,0.00027734,2]
[312795750,1706245841468,-151.0,0.00027734,2]
[312795751,1706245841477,-151.0,0.00027734,2]
[312795752,1706245841487,-173.953019,0.00027734,2]
[312795753,1706245841496,-151.0,0.00027734,2]
[312795754,1706245841505,-151.0,0.00027734,2]
[312795755,1706245841515,-172.207807,0.00027829,2]
[312795756,1706245841527,-196.172903,0.00029232,2]
[312795757,1706245841536,-7358.42888085,0.00029899,3]
[312795758,1706245841550,-6094.53111915,0.00029899,3]
[312795759,1706245841559,-151.0,0.0002992,2]
[312795760,1706245841569,-3986.33684934,0.0002992,3]
[312795761,1706245841580,-911.99904468,0.0002992,3]
[312795762,1706245841593,-261.546,0.0002992,3]
[312795763,1706245841605,-1042.62712709,0.0002992,3]
[312795764,1706245841620,-18315.72097889,0.0002992,3]
[312795765,1706245841630,-151.0,0.00029929,2]
[312795766,1706245841639,-175.773222,0.00029929,2]
[312795767,1706245841649,-175.773222,0.00029929,2]
[312795768,1706245841659,-151.0,0.0002993,2]
[312795769,1706245841669,-267.155697,0.0002993,2]
[312795770,1706245841679,-7139.615994,0.0002993,2]
[312795771,1706245841688,-7139.615994,0.0002993,2]
[312795772,1706245841698,-151.0,0.0002993,2]
[312795773,1706245841707,-175.773222,0.0002993,2]
[312795774,1706245841717,-175.773222,0.0002993,2]
[312795775,1706245841726,-175.773222,0.0002993,2]
[312795776,1706245841735,-175.773222,0.0002993,2]
[312795777,1706245841745,-151.0,0.00029939,2]
[312795778,1706245841754,-151.0,0.00029939,2]
[312795779,1706245841765,-236.087177,0.00029939,2]
[312795780,1706245841775,-236.087177,0.00029939,2]
[312795781,1706245841784,-682.185047,0.00029939,2]
[312795782,1706245841793,-682.185047,0.00029939,2]
[312795783,1706245841803,-151.0,0.00029939,2]
[312795784,1706245841812,-7139.615994,0.00029939,2]
[312795785,1706245841822,-6662.36237679,0.00029939,2]
[312795858,1706245846025,-20431.86,0.0002991,3]
[312795859,1706245846034,-477.25361721,0.00029939,2]
[312795860,1706245846044,-136.76747021,0.00029939,2]
[312795917,1706247032042,-171.481972,0.00024848,2]
[312795918,1706247032052,-293.9255039,0.00025559,2]
[312795920,1706247032061,-261.0420914,0.00025693,2]
[312795921,1706247032070,-500.0,0.00025694,2]
[312795923,1706247032079,-1684.94999632,0.00025694,2]
[312795941,1706247038154,-1876.78166499,0.00025694,2]
[312795942,1706247038165,-171.478313,0.00025702,2]
[312795943,1706247038174,-560.648362,0.00025726,2]